Workbook

Sheet Projectbegroting
A1: Financiele onderbouwing project I&W-fonds
B5: Begroting
A6: Omschrijving | B6: Bedrag | C6: Totaal
A7: Totaal Personele kosten | B7: =E37 -> 0
A8: Totaal overige kosten | B8: =D61 -> 0
A9: Totaal kosten | C9: =SUM(B7:B8) -> 0
A11: Omschrijving | B11: Bedrag | C11: Totaal
A12: Aangevraagde subsidie I&W fonds | B12: =B67 -> 0
A13: Aangevraagde/toegezegde cofinanciering | B13: =B68 -> 0
A14: Eigen bijdrage RVE/Maatschap | B14: =B69 -> 0
A15: Overig | B15: =B70 -> 0
A16: Totaal opbrengsten | C16: =SUM(B12:B15) -> 0
A18: Tabel 1. Onderbouwing salarissen personeel in loondienst (let op: gesubsidieerde aanstelling zoals AIOS kunnen niet worden vergoed tenzij er een losse aanstelling wordt gerealiseerd)
A19: Naam medewerker / functie | B19: FWG | C19: Aantal uren | D19: Uurloon | E19: Totaal bedrag
D20: =IF(ISNA(VLOOKUP(B20,uurloon,12,FALSE)),0,VLOOKUP(B20,uurloon,12,FALSE)) -> 0 | E20: =C20*D20 -> 0
D21: 0 | E21: 0
D22: 0 | E22: 0
D23: 0 | E23: 0
D24: 0 | E24: 0
D25: 0 | E25: 0
D26: 0 | E26: 0
D27: 0 | E27: 0
D28: 0 | E28: 0
D29: 0 | E29: 0
D30: 0 | E30: 0
D31: 0 | E31: 0
D32: 0 | E32: 0
D33: 0 | E33: 0
D34: 0 | E34: 0
D35: 0 | E35: 0
D36: 0 | E36: 0
A37: Totaal Salarissen | E37: =SUM(E20:E36) -> 0
A39: Tabel 2. Onderbouwing materiële kosten / andere personeelkosten (personeel niet in loondienst)
A40: Denk hierbij aan: beeldvormende technieken, software/hardware, database, monitoring, METC, etc.
A41: let op: drukwerk, publicatie kosten en congres bezoeken dienen bij het WMI te worden aangevraagd.
A42: let op: opleidingskosten dienen middels opleidingsbudget gefinancieerd te worden
A43: Omschrijving | B43: Aantal | C43: Bedrag | D43: Totaal bedrag
D44: =B44*C44 -> 0
D45: 0
D46: 0
D47: 0
D48: 0
D49: 0
D50: 0
D51: 0
D52: 0
D53: 0
D54: 0
D55: 0
D56: 0
D57: 0
D58: 0
D59: 0
D60: 0
A61: Totaal Materiële kosten | D61: =SUM(D44:D60) -> 0
A64: Tabel 3. Financiering project
A66: Omschrijving | B66: Totaal bedrag
A67: Aangevraagde subsidie I&W fonds
A68: Aangevraagde/toegezegde cofinanciering
A69: Eigen bijdrage RVE/Maatschap
A70: Overig
A71: Totaal opbrengsten | B71: =SUM(B67:B70) -> 0
A74: Datum: RVE-manager:
A75: Handtekening:

Sheet Uurtarieven (hidden)
A1: Functiegroeptrede | B1: Functiegroep | C1: Trede | D1: Schaal | E1: Salaris | F1: Jaarsalaris | G1: EJU | H1: Vakantiegeld | I1: Totaal | J1: SL | K1: Totaal incl SL | L1: Uurloon
A2: 25.3 | B2: Functiegroep 25 | C2: 3 | D2: 10 | E2: 2391 | F2: =E2*12 -> 28692 | G2: =F2*0.0833 -> 2390.0436 | H2: =F2*0.0833 -> 2390.0436 | I2: =SUM(F2:H2) -> 33472.0872 | J2: =I2*0.2367 -> 7922.84304 | K2: =SUM(I2:J2) -> 41394.93024 | L2: =K2/1878 -> 22.04202888
A3: 25.4 | B3: Functiegroep 25 | C3: 4 | D3: 11 | E3: 2456 | F3: =E3*12 -> 29472 | G3: =F3*0.0833 -> 2455.0176 | H3: 2455.0176 | I3: =SUM(F3:H3) -> 34382.0352 | J3: 8138.227732 | K3: =SUM(I3:J3) -> 42520.26293 | L3: =K3/1878 -> 22.64124757
A4: 25.5 | B4: Functiegroep 25 | C4: 5 | D4: 12 | E4: 2525 | F4: 30300 | G4: 2523.99 | H4: 2523.99 | I4: 35347.98 | J4: 8366.866866 | K4: 43714.84687 | L4: 23.27734125
A5: 25.6 | B5: Functiegroep 25 | C5: 6 | D5: 13 | E5: 2601 | F5: 31212 | G5: 2599.9596 | H5: 2599.9596 | I5: 36411.9192 | J5: 8618.701275 | K5: 45030.62047 | L5: 23.97796617
A6: 25.7 | B6: Functiegroep 25 | C6: 7 | D6: 14 | E6: 2679 | F6: 32148 | G6: 2677.9284 | H6: 2677.9284 | I6: 37503.8568 | J6: 8877.162905 | K6: 46381.0197 | L6: 24.6970286
A7: 25.8 | B7: Functiegroep 25 | C7: 8 | D7: 15 | E7: 2751 | F7: 33012 | G7: 2749.8996 | H7: 2749.8996 | I7: 38511.7992 | J7: 9115.742871 | K7: 47627.54207 | L7: 25.36077853
A8: 25.9 | B8: Functiegroep 25 | C8: 9 | D8: 16 | E8: 2832 | F8: 33984 | G8: 2830.8672 | H8: 2830.8672 | I8: 39645.7344 | J8: 9384.145332 | K8: 49029.87973 | L8: 26.1074972
A9: 25.10 | B9: Functiegroep 25 | C9: 10 | D9: 17 | E9: 2897 | F9: 34764 | G9: 2895.8412 | H9: 2895.8412 | I9: 40555.6824 | J9: 9599.530024 | K9: 50155.21242 | L9: 26.70671588
A10: 25.11 | B10: Functiegroep 25 | C10: 11 | D10: 18 | E10: 2975 | F10: 35700 | G10: 2973.81 | H10: 2973.81 | I10: 41647.62 | J10: 9857.991654 | K10: 51505.61165 | L10: 27.4257783
A11: 30.3 | B11: Functiegroep 30 | C11: 3 | D11: 12 | E11: 2525 | F11: 30300 | G11: 2523.99 | H11: 2523.99 | I11: 35347.98 | J11: 8366.866866 | K11: 43714.84687 | L11: 23.27734125
A12: 30.4 | B12: Functiegroep 30 | C12: 4 | D12: 13 | E12: 2601 | F12: 31212 | G12: 2599.9596 | H12: 2599.9596 | I12: 36411.9192 | J12: 8618.701275 | K12: 45030.62047 | L12: 23.97796617
A13: 30.5 | B13: Functiegroep 30 | C13: 5 | D13: 14 | E13: 2679 | F13: 32148 | G13: 2677.9284 | H13: 2677.9284 | I13: 37503.8568 | J13: 8877.162905 | K13: 46381.0197 | L13: 24.6970286
A14: 30.6 | B14: Functiegroep 30 | C14: 6 | D14: 15 | E14: 2751 | F14: 33012 | G14: 2749.8996 | H14: 2749.8996 | I14: 38511.7992 | J14: 9115.742871 | K14: 47627.54207 | L14: 25.36077853
A15: 30.7 | B15: Functiegroep 30 | C15: 7 | D15: 16 | E15: 2832 | F15: 33984 | G15: 2830.8672 | H15: 2830.8672 | I15: 39645.7344 | J15: 9384.145332 | K15: 49029.87973 | L15: 26.1074972
A16: 30.8 | B16: Functiegroep 30 | C16: 8 | D16: 17 | E16: 2897 | F16: 34764 | G16: 2895.8412 | H16: 2895.8412 | I16: 40555.6824 | J16: 9599.530024 | K16: 50155.21242 | L16: 26.70671588
A17: 30.9 | B17: Functiegroep 30 | C17: 9 | D17: 18 | E17: 2975 | F17: 35700 | G17: 2973.81 | H17: 2973.81 | I17: 41647.62 | J17: 9857.991654 | K17: 51505.61165 | L17: 27.4257783
A18: 30.10 | B18: Functiegroep 30 | C18: 10 | D18: 19 | E18: 3047 | F18: 36564 | G18: 3045.7812 | H18: 3045.7812 | I18: 42655.5624 | J18: 10096.57162 | K18: 52752.13402 | L18: 28.08952823
A19: 30.11 | B19: Functiegroep 30 | C19: 11 | D19: 20 | E19: 3122 | F19: 37464 | G19: 3120.7512 | H19: 3120.7512 | I19: 43705.5024 | J19: 10345.09242 | K19: 54050.59482 | L19: 28.78093441
A20: 35.3 | B20: Functiegroep 35 | C20: 3 | D20: 14 | E20: 2679 | F20: 32148 | G20: 2677.9284 | H20: 2677.9284 | I20: 37503.8568 | J20: 8877.162905 | K20: 46381.0197 | L20: 24.6970286
A21: 35.4 | B21: Functiegroep 35 | C21: 4 | D21: 15 | E21: 2751 | F21: 33012 | G21: 2749.8996 | H21: 2749.8996 | I21: 38511.7992 | J21: 9115.742871 | K21: 47627.54207 | L21: 25.36077853
A22: 35.5 | B22: Functiegroep 35 | C22: 5 | D22: 16 | E22: 2832 | F22: 33984 | G22: 2830.8672 | H22: 2830.8672 | I22: 39645.7344 | J22: 9384.145332 | K22: 49029.87973 | L22: 26.1074972
A23: 35.6 | B23: Functiegroep 35 | C23: 6 | D23: 17 | E23: 2897 | F23: 34764 | G23: 2895.8412 | H23: 2895.8412 | I23: 40555.6824 | J23: 9599.530024 | K23: 50155.21242 | L23: 26.70671588
A24: 35.7 | B24: Functiegroep 35 | C24: 7 | D24: 18 | E24: 2975 | F24: 35700 | G24: 2973.81 | H24: 2973.81 | I24: 41647.62 | J24: 9857.991654 | K24: 51505.61165 | L24: 27.4257783
A25: 35.8 | B25: Functiegroep 35 | C25: 8 | D25: 19 | E25: 3047 | F25: 36564 | G25: 3045.7812 | H25: 3045.7812 | I25: 42655.5624 | J25: 10096.57162 | K25: 52752.13402 | L25: 28.08952823
A26: 35.9 | B26: Functiegroep 35 | C26: 9 | D26: 20 | E26: 3122 | F26: 37464 | G26: 3120.7512 | H26: 3120.7512 | I26: 43705.5024 | J26: 10345.09242 | K26: 54050.59482 | L26: 28.78093441
A27: 35.10 | B27: Functiegroep 35 | C27: 10 | D27: 21 | E27: 3199 | F27: 38388 | G27: 3197.7204 | H27: 3197.7204 | I27: 44783.4408 | J27: 10600.24044 | K27: 55383.68124 | L27: 29.49077808
A28: 35.11 | B28: Functiegroep 35 | C28: 11 | D28: 22 | E28: 3276 | F28: 39312 | G28: 3274.6896 | H28: 3274.6896 | I28: 45861.3792 | J28: 10855.38846 | K28: 56716.76766 | L28: 30.20062176
A29: 40.0 | B29: Functiegroep 40 | C29: 0 | D29: 10 | E29: 2391 | F29: 28692 | G29: 2390.0436 | H29: 2390.0436 | I29: 33472.0872 | J29: 7922.84304 | K29: 41394.93024 | L29: 22.04202888
A30: 40.1 | B30: Functiegroep 40 | C30: 1 | D30: 12 | E30: 2525 | F30: 30300 | G30: 2523.99 | H30: 2523.99 | I30: 35347.98 | J30: 8366.866866 | K30: 43714.84687 | L30: 23.27734125
A31: 40.2 | B31: Functiegroep 40 | C31: 2 | D31: 14 | E31: 2679 | F31: 32148 | G31: 2677.9284 | H31: 2677.9284 | I31: 37503.8568 | J31: 8877.162905 | K31: 46381.0197 | L31: 24.6970286
A32: 40.3 | B32: Functiegroep 40 | C32: 3 | D32: 16 | E32: 2832 | F32: 33984 | G32: 2830.8672 | H32: 2830.8672 | I32: 39645.7344 | J32: 9384.145332 | K32: 49029.87973 | L32: 26.1074972
A33: 40.4 | B33: Functiegroep 40 | C33: 4 | D33: 17 | E33: 2897 | F33: 34764 | G33: 2895.8412 | H33: 2895.8412 | I33: 40555.6824 | J33: 9599.530024 | K33: 50155.21242 | L33: 26.70671588
A34: 40.5 | B34: Functiegroep 40 | C34: 5 | D34: 18 | E34: 2975 | F34: 35700 | G34: 2973.81 | H34: 2973.81 | I34: 41647.62 | J34: 9857.991654 | K34: 51505.61165 | L34: 27.4257783
A35: 40.6 | B35: Functiegroep 40 | C35: 6 | D35: 19 | E35: 3047 | F35: 36564 | G35: 3045.7812 | H35: 3045.7812 | I35: 42655.5624 | J35: 10096.57162 | K35: 52752.13402 | L35: 28.08952823
A36: 40.7 | B36: Functiegroep 40 | C36: 7 | D36: 20 | E36: 3122 | F36: 37464 | G36: 3120.7512 | H36: 3120.7512 | I36: 43705.5024 | J36: 10345.09242 | K36: 54050.59482 | L36: 28.78093441
A37: 40.8 | B37: Functiegroep 40 | C37: 8 | D37: 21 | E37: 3199 | F37: 38388 | G37: 3197.7204 | H37: 3197.7204 | I37: 44783.4408 | J37: 10600.24044 | K37: 55383.68124 | L37: 29.49077808
A38: 40.9 | B38: Functiegroep 40 | C38: 9 | D38: 22 | E38: 3276 | F38: 39312 | G38: 3274.6896 | H38: 3274.6896 | I38: 45861.3792 | J38: 10855.38846 | K38: 56716.76766 | L38: 30.20062176
A39: 40.10 | B39: Functiegroep 40 | C39: 10 | D39: 23 | E39: 3355 | F39: 40260 | G39: 3353.658 | H39: 3353.658 | I39: 46967.316 | J39: 11117.1637 | K39: 58084.4797 | L39: 30.92890293
A40: 40.11 | B40: Functiegroep 40 | C40: 11 | D40: 24 | E40: 3434 | F40: 41208 | G40: 3432.6264 | H40: 3432.6264 | I40: 48073.2528 | J40: 11378.93894 | K40: 59452.19174 | L40: 31.6571841
A41: 40.12 | B41: Functiegroep 40 | C41: 12 | D41: 25 | E41: 3484 | F41: =E41*12 -> 41808 | G41: =F41*0.0833 -> 3482.6064 | H41: =F41*0.0833 -> 3482.6064 | I41: =SUM(F41:H41) -> 48773.2128 | J41: =I41*0.2367 -> 11544.61947 | K41: =SUM(I41:J41) -> 60317.83227 | L41: =K41/1878 -> 32.11812155
A42: 45.0 | B42: Functiegroep 45 | C42: 0 | D42: 16 | E42: 3832 | F42: 45984 | G42: 3830.4672 | H42: 3830.4672 | I42: 53644.9344 | J42: 12697.75597 | K42: 66342.69037 | L42: 35.3262462
A43: 45.1 | B43: Functiegroep 45 | C43: 1 | D43: 18 | E43: 2975 | F43: 35700 | G43: 2973.81 | H43: 2973.81 | I43: 41647.62 | J43: 9857.991654 | K43: 51505.61165 | L43: 27.4257783
A44: 45.2 | B44: Functiegroep 45 | C44: 2 | D44: 19 | E44: 3047 | F44: 36564 | G44: 3045.7812 | H44: 3045.7812 | I44: 42655.5624 | J44: 10096.57162 | K44: 52752.13402 | L44: 28.08952823
A45: 45.3 | B45: Functiegroep 45 | C45: 3 | D45: 20 | E45: 3122 | F45: 37464 | G45: 3120.7512 | H45: 3120.7512 | I45: 43705.5024 | J45: 10345.09242 | K45: 54050.59482 | L45: 28.78093441
A46: 45.4 | B46: Functiegroep 45 | C46: 4 | D46: 21 | E46: 3199 | F46: 38388 | G46: 3197.7204 | H46: 3197.7204 | I46: 44783.4408 | J46: 10600.24044 | K46: 55383.68124 | L46: 29.49077808
A47: 45.5 | B47: Functiegroep 45 | C47: 5 | D47: 22 | E47: 3276 | F47: 39312 | G47: 3274.6896 | H47: 3274.6896 | I47: 45861.3792 | J47: 10855.38846 | K47: 56716.76766 | L47: 30.20062176
A48: 45.6 | B48: Functiegroep 45 | C48: 6 | D48: 23 | E48: 3355 | F48: 40260 | G48: 3353.658 | H48: 3353.658 | I48: 46967.316 | J48: 11117.1637 | K48: 58084.4797 | L48: 30.92890293
A49: 45.7 | B49: Functiegroep 45 | C49: 7 | D49: 24 | E49: 3434 | F49: 41208 | G49: 3432.6264 | H49: 3432.6264 | I49: 48073.2528 | J49: 11378.93894 | K49: 59452.19174 | L49: 31.6571841
A50: 45.8 | B50: Functiegroep 45 | C50: 8 | D50: 25 | E50: 3484 | F50: 41808 | G50: 3482.6064 | H50: 3482.6064 | I50: 48773.2128 | J50: 11544.61947 | K50: 60317.83227 | L50: 32.11812155
A51: 45.9 | B51: Functiegroep 45 | C51: 9 | D51: 26 | E51: 3570 | F51: 42840 | G51: 3568.572 | H51: 3568.572 | I51: 49977.144 | J51: 11829.58998 | K51: 61806.73398 | L51: 32.91093396
A52: 45.10 | B52: Functiegroep 45 | C52: 10 | D52: 27 | E52: 3658 | F52: 43896 | G52: 3656.5368 | H52: 3656.5368 | I52: 51209.0736 | J52: 12121.18772 | K52: 63330.26132 | L52: 33.72218388
A53: 45.11 | B53: Functiegroep 45 | C53: 11 | D53: 28 | E53: 3736 | F53: 44832 | G53: 3734.5056 | H53: 3734.5056 | I53: 52301.0112 | J53: 12379.64935 | K53: 64680.66055 | L53: 34.4412463
A54: 45.12 | B54: Functiegroep 45 | C54: 12 | D54: 29 | E54: 3824 | F54: 45888 | G54: 3822.4704 | H54: 3822.4704 | I54: 53532.9408 | J54: 12671.24709 | K54: 66204.18789 | L54: 35.25249621
A55: 50.0 | B55: Functiegroep 50 | C55: 0 | D55: 19 | E55: 3047 | F55: 36564 | G55: 3045.7812 | H55: 3045.7812 | I55: 42655.5624 | J55: 10096.57162 | K55: 52752.13402 | L55: 28.08952823
A56: 50.1 | B56: Functiegroep 50 | C56: 1 | D56: 21 | E56: 3199 | F56: 38388 | G56: 3197.7204 | H56: 3197.7204 | I56: 44783.4408 | J56: 10600.24044 | K56: 55383.68124 | L56: 29.49077808
A57: 50.2 | B57: Functiegroep 50 | C57: 2 | D57: 23 | E57: 3355 | F57: 40260 | G57: 3353.658 | H57: 3353.658 | I57: 46967.316 | J57: 11117.1637 | K57: 58084.4797 | L57: 30.92890293
A58: 50.3 | B58: Functiegroep 50 | C58: 3 | D58: 25 | E58: 3484 | F58: 41808 | G58: 3482.6064 | H58: 3482.6064 | I58: 48773.2128 | J58: 11544.61947 | K58: 60317.83227 | L58: 32.11812155
A59: 50.4 | B59: Functiegroep 50 | C59: 4 | D59: 27 | E59: 3658 | F59: 43896 | G59: 3656.5368 | H59: 3656.5368 | I59: 51209.0736 | J59: 12121.18772 | K59: 63330.26132 | L59: 33.72218388
A60: 50.5 | B60: Functiegroep 50 | C60: 5 | D60: 28 | E60: 3736 | F60: 44832 | G60: 3734.5056 | H60: 3734.5056 | I60: 52301.0112 | J60: 12379.64935 | K60: 64680.66055 | L60: 34.4412463
A61: 50.6 | B61: Functiegroep 50 | C61: 6 | D61: 29 | E61: 3824 | F61: 45888 | G61: 3822.4704 | H61: 3822.4704 | I61: 53532.9408 | J61: 12671.24709 | K61: 66204.18789 | L61: 35.25249621
A62: 50.7 | B62: Functiegroep 50 | C62: 7 | D62: 30 | E62: 3910 | F62: 46920 | G62: 3908.436 | H62: 3908.436 | I62: 54736.872 | J62: 12956.2176 | K62: 67693.0896 | L62: 36.04530863
A63: 50.8 | B63: Functiegroep 50 | C63: 8 | D63: 31 | E63: 3991 | F63: 47892 | G63: 3989.4036 | H63: 3989.4036 | I63: 55870.8072 | J63: 13224.62006 | K63: 69095.42726 | L63: 36.7920273
A64: 50.9 | B64: Functiegroep 50 | C64: 9 | D64: 32 | E64: 4073 | F64: 48876 | G64: 4071.3708 | H64: 4071.3708 | I64: 57018.7416 | J64: 13496.33614 | K64: 70515.07774 | L64: 37.54796472
A65: 50.10 | B65: Functiegroep 50 | C65: 10 | D65: 33 | E65: 4158 | F65: 49896 | G65: 4156.3368 | H65: 4156.3368 | I65: 58208.6736 | J65: 13777.99304 | K65: 71986.66664 | L65: 38.33155838
A66: 50.11 | B66: Functiegroep 50 | C66: 11 | D66: 34 | E66: 4244 | F66: 50928 | G66: 4242.3024 | H66: 4242.3024 | I66: 59412.6048 | J66: =I66*0.2367 -> 14062.96356 | K66: 73475.56836 | L66: 39.1243708
A67: 50.12 | B67: Functiegroep 50 | C67: 12 | D67: 35 | E67: 4324 | F67: 51888 | G67: 4322.2704 | H67: =F67*0.0833 -> 4322.2704 | I67: 60532.5408 | J67: 14328.05241 | K67: 74860.59321 | L67: 39.86187072
A68: 55.0 | B68: Functiegroep 55 | C68: 0 | D68: 24 | E68: 3434 | F68: =E68*12 -> 41208 | G68: =F68*0.0833 -> 3432.6264 | H68: 3432.6264 | I68: =SUM(F68:H68) -> 48073.2528 | J68: 11378.93894 | K68: =SUM(I68:J68) -> 59452.19174 | L68: =K68/1878 -> 31.6571841
A69: 55.1 | B69: Functiegroep 55 | C69: 1 | D69: 26 | E69: 3570 | F69: 42840 | G69: 3568.572 | H69: 3568.572 | I69: 49977.144 | J69: 11829.58998 | K69: 61806.73398 | L69: 32.91093396
A70: 55.2 | B70: Functiegroep 55 | C70: 2 | D70: 28 | E70: 3736 | F70: 44832 | G70: 3734.5056 | H70: 3734.5056 | I70: 52301.0112 | J70: 12379.64935 | K70: 64680.66055 | L70: 34.4412463
A71: 55.3 | B71: Functiegroep 55 | C71: 3 | D71: 30 | E71: 3910 | F71: 46920 | G71: 3908.436 | H71: 3908.436 | I71: 54736.872 | J71: 12956.2176 | K71: 67693.0896 | L71: 36.04530863
A72: 55.4 | B72: Functiegroep 55 | C72: 4 | D72: 32 | E72: 4073 | F72: 48876 | G72: 4071.3708 | H72: 4071.3708 | I72: 57018.7416 | J72: 13496.33614 | K72: 70515.07774 | L72: 37.54796472
A73: 55.5 | B73: Functiegroep 55 | C73: 5 | D73: 34 | E73: 4244 | F73: 50928 | G73: 4242.3024 | H73: 4242.3024 | I73: 59412.6048 | J73: 14062.96356 | K73: 73475.56836 | L73: 39.1243708
A74: 55.6 | B74: Functiegroep 55 | C74: 6 | D74: 35 | E74: 4324 | F74: 51888 | G74: 4322.2704 | H74: 4322.2704 | I74: 60532.5408 | J74: 14328.05241 | K74: 74860.59321 | L74: 39.86187072
A75: 55.7 | B75: Functiegroep 55 | C75: 7 | D75: 36 | E75: 4405 | F75: 52860 | G75: 4403.238 | H75: 4403.238 | I75: 61666.476 | J75: 14596.45487 | K75: 76262.93087 | L75: 40.60858939
A76: 55.8 | B76: Functiegroep 55 | C76: 8 | D76: 37 | E76: 4496 | F76: 53952 | G76: 4494.2016 | H76: 4494.2016 | I76: 62940.4032 | J76: 14897.99344 | K76: 77838.39664 | L76: 41.44749555
A77: 55.9 | B77: Functiegroep 55 | C77: 9 | D77: 38 | E77: 4585 | F77: 55020 | G77: 4583.166 | H77: 4583.166 | I77: 64186.332 | J77: 15192.90478 | K77: 79379.23678 | L77: 42.26796421
A78: 55.10 | B78: Functiegroep 55 | C78: 10 | D78: 39 | E78: 4674 | F78: 56088 | G78: 4672.1304 | H78: 4672.1304 | I78: 65432.2608 | J78: 15487.81613 | K78: 80920.07693 | L78: 43.08843287
A79: 55.11 | B79: Functiegroep 55 | C79: 11 | D79: 40 | E79: 4753 | F79: 57036 | G79: 4751.0988 | H79: 4751.0988 | I79: 66538.1976 | J79: 15749.59137 | K79: 82287.78897 | L79: 43.81671404
A80: 55.12 | B80: Functiegroep 55 | C80: 12 | D80: 41 | E80: 4842 | F80: 58104 | G80: 4840.0632 | H80: 4840.0632 | I80: 67784.1264 | J80: 16044.50272 | K80: 83828.62912 | L80: 44.6371827
A81: 60.0 | B81: Functiegroep 60 | C81: 0 | D81: 28 | E81: 3736 | F81: 44832 | G81: 3734.5056 | H81: 3734.5056 | I81: 52301.0112 | J81: 12379.64935 | K81: 64680.66055 | L81: 34.4412463
A82: 60.1 | B82: Functiegroep 60 | C82: 1 | D82: 30 | E82: 3910 | F82: 46920 | G82: 3908.436 | H82: 3908.436 | I82: 54736.872 | J82: 12956.2176 | K82: 67693.0896 | L82: 36.04530863
A83: 60.2 | B83: Functiegroep 60 | C83: 2 | D83: 32 | E83: 4073 | F83: 48876 | G83: 4071.3708 | H83: 4071.3708 | I83: 57018.7416 | J83: 13496.33614 | K83: 70515.07774 | L83: 37.54796472
A84: 60.3 | B84: Functiegroep 60 | C84: 3 | D84: 34 | E84: 4244 | F84: 50928 | G84: 4242.3024 | H84: 4242.3024 | I84: 59412.6048 | J84: 14062.96356 | K84: 73475.56836 | L84: 39.1243708
A85: 60.4 | B85: Functiegroep 60 | C85: 4 | D85: 36 | E85: 4405 | F85: 52860 | G85: 4403.238 | H85: 4403.238 | I85: 61666.476 | J85: 14596.45487 | K85: 76262.93087 | L85: 40.60858939
A86: 60.5 | B86: Functiegroep 60 | C86: 5 | D86: 38 | E86: 4585 | F86: 55020 | G86: 4583.166 | H86: 4583.166 | I86: 64186.332 | J86: 15192.90478 | K86: 79379.23678 | L86: 42.26796421
A87: 60.6 | B87: Functiegroep 60 | C87: 6 | D87: 40 | E87: 4753 | F87: 57036 | G87: 4751.0988 | H87: 4751.0988 | I87: 66538.1976 | J87: 15749.59137 | K87: 82287.78897 | L87: 43.81671404
A88: 60.7 | B88: Functiegroep 60 | C88: 7 | D88: 42 | E88: 4927 | F88: 59124 | G88: 4925.0292 | H88: 4925.0292 | I88: 68974.0584 | J88: 16326.15962 | K88: 85300.21802 | L88: 45.42077637
A89: 60.8 | B89: Functiegroep 60 | C89: 8 | D89: 44 | E89: 5093 | F89: 61116 | G89: 5090.9628 | H89: 5090.9628 | I89: 71297.9256 | J89: 16876.21899 | K89: 88174.14459 | L89: 46.95108871
A90: 60.9 | B90: Functiegroep 60 | C90: 9 | D90: 45 | E90: 5167 | F90: 62004 | G90: 5164.9332 | H90: 5164.9332 | I90: 72333.8664 | J90: 17121.42618 | K90: 89455.29258 | L90: 47.63327613
A91: 60.10 | B91: Functiegroep 60 | C91: 10 | D91: 46 | E91: 5242 | F91: 62904 | G91: 5239.9032 | H91: 5239.9032 | I91: 73383.8064 | J91: 17369.94697 | K91: 90753.75337 | L91: 48.32468231
A92: 60.11 | B92: Functiegroep 60 | C92: 11 | D92: 47 | E92: 5320 | F92: 63840 | G92: 5317.872 | H92: 5317.872 | I92: 74475.744 | J92: 17628.4086 | K92: 92104.1526 | L92: 49.04374473
A93: 60.12 | B93: Functiegroep 60 | C93: 12 | D93: 48 | E93: 5395 | F93: 64740 | G93: 5392.842 | H93: 5392.842 | I93: 75525.684 | J93: 17876.9294 | K93: 93402.6134 | L93: 49.73515091
A94: 60.13 | B94: Functiegroep 60 | C94: 13 | D94: 49 | E94: 5473 | F94: =E94*12 -> 65676 | G94: =F94*0.0833 -> 5470.8108 | H94: =F94*0.0833 -> 5470.8108 | I94: =SUM(F94:H94) -> 76617.6216 | J94: =I94*0.2367 -> 18135.39103 | K94: =SUM(I94:J94) -> 94753.01263 | L94: =K94/1878 -> 50.45421333
A95: 65.0 | B95: Functiegroep 65 | C95: 0 | D95: 34 | E95: 4244 | F95: 50928 | G95: 4242.3024 | H95: 4242.3024 | I95: 59412.6048 | J95: 14062.96356 | K95: 73475.56836 | L95: 39.1243708
A96: 65.1 | B96: Functiegroep 65 | C96: 1 | D96: 36 | E96: 4405 | F96: 52860 | G96: 4403.238 | H96: 4403.238 | I96: 61666.476 | J96: 14596.45487 | K96: 76262.93087 | L96: 40.60858939
A97: 65.2 | B97: Functiegroep 65 | C97: 2 | D97: 38 | E97: 4585 | F97: 55020 | G97: 4583.166 | H97: 4583.166 | I97: 64186.332 | J97: 15192.90478 | K97: 79379.23678 | L97: 42.26796421
A98: 65.3 | B98: Functiegroep 65 | C98: 3 | D98: 40 | E98: 4753 | F98: 57036 | G98: 4751.0988 | H98: 4751.0988 | I98: 66538.1976 | J98: 15749.59137 | K98: 82287.78897 | L98: 43.81671404
A99: 65.4 | B99: Functiegroep 65 | C99: 4 | D99: 42 | E99: 4927 | F99: 59124 | G99: 4925.0292 | H99: 4925.0292 | I99: 68974.0584 | J99: 16326.15962 | K99: 85300.21802 | L99: 45.42077637
A100: 65.5 | B100: Functiegroep 65 | C100: 5 | D100: 44 | E100: 5093 | F100: 61116 | G100: 5090.9628 | H100: 5090.9628 | I100: 71297.9256 | J100: 16876.21899 | K100: 88174.14459 | L100: 46.95108871
A101: 65.6 | B101: Functiegroep 65 | C101: 6 | D101: 46 | E101: 5242 | F101: 62904 | G101: 5239.9032 | H101: 5239.9032 | I101: 73383.8064 | J101: 17369.94697 | K101: 90753.75337 | L101: 48.32468231
A102: 65.7 | B102: Functiegroep 65 | C102: 7 | D102: 48 | E102: 5395 | F102: 64740 | G102: 5392.842 | H102: 5392.842 | I102: 75525.684 | J102: 17876.9294 | K102: 93402.6134 | L102: 49.73515091
A103: 65.8 | B103: Functiegroep 65 | C103: 8 | D103: 50 | E103: 5550 | F103: 66600 | G103: 5547.78 | H103: 5547.78 | I103: 77695.56 | J103: 18390.53905 | K103: 96086.09905 | L103: 51.164057
A104: 65.9 | B104: Functiegroep 65 | C104: 9 | D104: 52 | E104: 5704 | F104: 68448 | G104: 5701.7184 | H104: 5701.7184 | I104: 79851.4368 | J104: 18900.83509 | K104: 98752.27189 | L104: 52.58374435
A105: 65.10 | B105: Functiegroep 65 | C105: 10 | D105: 54 | E105: 5858 | F105: 70296 | G105: 5855.6568 | H105: 5855.6568 | I105: 82007.3136 | J105: 19411.13113 | K105: 101418.4447 | L105: 54.0034317
A106: 65.11 | B106: Functiegroep 65 | C106: 11 | D106: 56 | E106: 6013 | F106: 72156 | G106: 6010.5948 | H106: 6010.5948 | I106: 84177.1896 | J106: 19924.74078 | K106: 104101.9304 | L106: 55.43233779
A107: 65.12 | B107: Functiegroep 65 | C107: 12 | D107: 57 | E107: 6088 | F107: 73056 | G107: 6085.5648 | H107: 6085.5648 | I107: 85227.1296 | J107: 20173.26158 | K107: 105400.3912 | L107: 56.12374397
A108: 65.13 | B108: Functiegroep 65 | C108: 13 | D108: 58 | E108: 6165 | F108: 73980 | G108: 6162.534 | H108: 6162.534 | I108: 86305.068 | J108: 20428.4096 | K108: 106733.4776 | L108: 56.83358764
A109: 65.14 | B109: Functiegroep 65 | C109: 14 | D109: 59 | E109: 6244 | F109: 74928 | G109: 6241.5024 | H109: 6241.5024 | I109: 87411.0048 | J109: 20690.18484 | K109: 108101.1896 | L109: 57.56186882
A110: 65.15 | B110: Functiegroep 65 | C110: 15 | D110: 60 | E110: 6320 | F110: 75840 | G110: 6317.472 | H110: 6317.472 | I110: 88474.944 | J110: 20942.01924 | K110: 109416.9632 | L110: 58.26249374
A111: 65.16 | B111: Functiegroep 65 | C111: 16 | D111: 61 | E111: 6396 | F111: =E111*12 -> 76752 | G111: =F111*0.0833 -> 6393.4416 | H111: =F111*0.0833 -> 6393.4416 | I111: =SUM(F111:H111) -> 89538.8832 | J111: =I111*0.2367 -> 21193.85365 | K111: =SUM(I111:J111) -> 110732.7369 | L111: =K111/1878 -> 58.96311867
A112: 70.0 | B112: Functiegroep 70 | C112: 0 | D112: 44 | E112: 5093 | F112: 61116 | G112: 5090.9628 | H112: 5090.9628 | I112: 71297.9256 | J112: 16876.21899 | K112: 88174.14459 | L112: 46.95108871
A113: 70.1 | B113: Functiegroep 70 | C113: 1 | D113: 46 | E113: 5242 | F113: 62904 | G113: 5239.9032 | H113: 5239.9032 | I113: 73383.8064 | J113: 17369.94697 | K113: 90753.75337 | L113: 48.32468231
A114: 70.2 | B114: Functiegroep 70 | C114: 2 | D114: 48 | E114: 5395 | F114: 64740 | G114: 5392.842 | H114: 5392.842 | I114: 75525.684 | J114: 17876.9294 | K114: 93402.6134 | L114: 49.73515091
A115: 70.3 | B115: Functiegroep 70 | C115: 3 | D115: 50 | E115: 5550 | F115: 66600 | G115: 5547.78 | H115: 5547.78 | I115: 77695.56 | J115: 18390.53905 | K115: 96086.09905 | L115: 51.164057
A116: 70.4 | B116: Functiegroep 70 | C116: 4 | D116: 53 | E116: 5783 | F116: 69396 | G116: 5780.6868 | H116: 5780.6868 | I116: 80957.3736 | J116: 19162.61033 | K116: 100119.9839 | L116: 53.31202552
A117: 70.5 | B117: Functiegroep 70 | C117: 5 | D117: 56 | E117: 6013 | F117: 72156 | G117: 6010.5948 | H117: 6010.5948 | I117: 84177.1896 | J117: 19924.74078 | K117: 104101.9304 | L117: 55.43233779
A118: 70.6 | B118: Functiegroep 70 | C118: 6 | D118: 59 | E118: 6244 | F118: 74928 | G118: 6241.5024 | H118: 6241.5024 | I118: 87411.0048 | J118: 20690.18484 | K118: 108101.1896 | L118: 57.56186882
A119: 70.7 | B119: Functiegroep 70 | C119: 7 | D119: 62 | E119: 6466 | F119: 77592 | G119: 6463.4136 | H119: 6463.4136 | I119: 90518.8272 | J119: 21425.8064 | K119: 111944.6336 | L119: 59.6084311
A120: 70.8 | B120: Functiegroep 70 | C120: 8 | D120: 64 | E120: 6614 | F120: 79368 | G120: 6611.3544 | H120: 6611.3544 | I120: 92590.7088 | J120: 21916.22077 | K120: 114506.9296 | L120: 60.97280595
A121: 70.9 | B121: Functiegroep 70 | C121: 9 | D121: 66 | E121: 6796 | F121: 81552 | G121: 6793.2816 | H121: 6793.2816 | I121: 95138.5632 | J121: 22519.29791 | K121: 117657.8611 | L121: 62.65061827
A122: 70.10 | B122: Functiegroep 70 | C122: 10 | D122: 68 | E122: 6980 | F122: 83760 | G122: 6977.208 | H122: 6977.208 | I122: 97714.416 | J122: 23129.00227 | K122: 120843.4183 | L122: 64.34686809
A123: 70.11 | B123: Functiegroep 70 | C123: 11 | D123: 70 | E123: 7162 | F123: 85944 | G123: 7159.1352 | H123: 7159.1352 | I123: 100262.2704 | J123: 23732.0794 | K123: 123994.3498 | L123: 66.02468041
A124: 70.12 | B124: Functiegroep 70 | C124: 12 | D124: 71 | E124: 7254 | F124: 87048 | G124: 7251.0984 | H124: 7251.0984 | I124: 101550.1968 | J124: 24036.93158 | K124: 125587.1284 | L124: 66.87280532
A125: 70.13 | B125: Functiegroep 70 | C125: 13 | D125: 72 | E125: 7348 | F125: 88176 | G125: 7345.0608 | H125: 7345.0608 | I125: 102866.1216 | J125: 24348.41098 | K125: 127214.5326 | L125: 67.73936772
A126: 70.14 | B126: Functiegroep 70 | C126: 14 | D126: 73 | E126: 7439 | F126: 89268 | G126: 7436.0244 | H126: 7436.0244 | I126: 104140.0488 | J126: 24649.94955 | K126: 128789.9984 | L126: 68.57827388
A127: 70.15 | B127: Functiegroep 70 | C127: 15 | D127: 74 | E127: 7531 | F127: 90372 | G127: 7527.9876 | H127: 7527.9876 | I127: 105427.9752 | J127: 24954.80173 | K127: 130382.7769 | L127: 69.42639879
A128: 75.0 | B128: Functiegroep 75 | C128: 0 | D128: 56 | E128: 6013 | F128: 72156 | G128: 6010.5948 | H128: 6010.5948 | I128: 84177.1896 | J128: 19924.74078 | K128: 104101.9304 | L128: 55.43233779
A129: 75.1 | B129: Functiegroep 75 | C129: 1 | D129: 58 | E129: 6165 | F129: 73980 | G129: 6162.534 | H129: 6162.534 | I129: 86305.068 | J129: 20428.4096 | K129: 106733.4776 | L129: 56.83358764
A130: 75.2 | B130: Functiegroep 75 | C130: 2 | D130: 60 | E130: 6320 | F130: 75840 | G130: 6317.472 | H130: 6317.472 | I130: 88474.944 | J130: =I130*0.2367 -> 20942.01924 | K130: 109416.9632 | L130: 58.26249374
A131: 75.3 | B131: Functiegroep 75 | C131: 3 | D131: 62 | E131: 6466 | F131: 77592 | G131: 6463.4136 | H131: 6463.4136 | I131: 90518.8272 | J131: 21425.8064 | K131: 111944.6336 | L131: 59.6084311
A132: 75.4 | B132: Functiegroep 75 | C132: 4 | D132: 65 | E132: 6704 | F132: 80448 | G132: 6701.3184 | H132: 6701.3184 | I132: 93850.6368 | J132: 22214.44573 | K132: 116065.0825 | L132: 61.80249336
A133: 75.5 | B133: Functiegroep 75 | C133: 5 | D133: 68 | E133: 6980 | F133: 83760 | G133: 6977.208 | H133: =F133*0.0833 -> 6977.208 | I133: 97714.416 | J133: 23129.00227 | K133: 120843.4183 | L133: 64.34686809
A134: 75.6 | B134: Functiegroep 75 | C134: 6 | D134: 71 | E134: 7254 | F134: =E134*12 -> 87048 | G134: =F134*0.0833 -> 7251.0984 | H134: 7251.0984 | I134: =SUM(F134:H134) -> 101550.1968 | J134: 24036.93158 | K134: =SUM(I134:J134) -> 125587.1284 | L134: =K134/1878 -> 66.87280532
A135: 75.7 | B135: Functiegroep 75 | C135: 7 | D135: 74 | E135: 7531 | F135: 90372 | G135: 7527.9876 | H135: 7527.9876 | I135: 105427.9752 | J135: 24954.80173 | K135: 130382.7769 | L135: 69.42639879
A136: 75.8 | B136: Functiegroep 75 | C136: 8 | D136: 76 | E136: 7715 | F136: 92580 | G136: 7711.914 | H136: 7711.914 | I136: 108003.828 | J136: 25564.50609 | K136: 133568.3341 | L136: 71.12264861
A137: 75.9 | B137: Functiegroep 75 | C137: 9 | D137: 78 | E137: 7908 | F137: 94896 | G137: 7904.8368 | H137: 7904.8368 | I137: 110705.6736 | J137: 26204.03294 | K137: 136909.7065 | L137: 72.90186717
A138: 75.10 | B138: Functiegroep 75 | C138: 10 | D138: 80 | E138: 8113 | F138: 97356 | G138: 8109.7548 | H138: 8109.7548 | I138: 113575.5096 | J138: 26883.32312 | K138: 140458.8327 | L138: 74.79171071
A139: 75.11 | B139: Functiegroep 75 | C139: 11 | D139: 82 | E139: 8319 | F139: 99828 | G139: 8315.6724 | H139: 8315.6724 | I139: 116459.3448 | J139: 27565.92691 | K139: 144025.2717 | L139: 76.69077301
A140: 75.12 | B140: Functiegroep 75 | C140: 12 | D140: 83 | E140: 8420 | F140: 101040 | G140: 8416.632 | H140: 8416.632 | I140: 117873.264 | J140: 27900.60159 | K140: 145773.8656 | L140: 77.62186666
A141: 75.13 | B141: Functiegroep 75 | C141: 13 | D141: 84 | E141: 8524 | F141: 102288 | G141: 8520.5904 | H141: 8520.5904 | I141: 119329.1808 | J141: 28245.2171 | K141: 147574.3979 | L141: 78.58061656
A142: 75.14 | B142: Functiegroep 75 | C142: 14 | D142: 85 | E142: 8644 | F142: 103728 | G142: 8640.5424 | H142: 8640.5424 | I142: 121009.0848 | J142: 28642.85037 | K142: 149651.9352 | L142: 79.68686644
A143: 75.15 | B143: Functiegroep 75 | C143: 15 | D143: 86 | E143: 8766 | F143: 105192 | G143: 8762.4936 | H143: 8762.4936 | I143: 122716.9872 | J143: 29047.11087 | K143: 151764.0981 | L143: 80.81155382
A144: 75.16 | B144: Functiegroep 75 | C144: 16 | D144: 87 | E144: 8884 | F144: 106608 | G144: 8880.4464 | H144: 8880.4464 | I144: 124368.8928 | J144: 29438.11693 | K144: 153807.0097 | L144: 81.8993662
A145: 75.17 | B145: Functiegroep 75 | C145: 17 | D145: 88 | E145: 9006 | F145: 108072 | G145: 9002.3976 | H145: 9002.3976 | I145: 126076.7952 | J145: 29842.37742 | K145: 155919.1726 | L145: 83.02405358
A146: 80.0 | B146: Functiegroep 80 | C146: 0 | D146: 68 | E146: 6980 | F146: 83760 | G146: 6977.208 | H146: 6977.208 | I146: 97714.416 | J146: 23129.00227 | K146: 120843.4183 | L146: 64.34686809
A147: 80.1 | B147: Functiegroep 80 | C147: 1 | D147: 70 | E147: 7162 | F147: 85944 | G147: 7159.1352 | H147: 7159.1352 | I147: 100262.2704 | J147: 23732.0794 | K147: 123994.3498 | L147: 66.02468041
A148: 80.2 | B148: Functiegroep 80 | C148: 2 | D148: 72 | E148: 7348 | F148: 88176 | G148: 7345.0608 | H148: 7345.0608 | I148: 102866.1216 | J148: 24348.41098 | K148: 127214.5326 | L148: 67.73936772
A149: 80.3 | B149: Functiegroep 80 | C149: 3 | D149: 74 | E149: 7531 | F149: 90372 | G149: 7527.9876 | H149: 7527.9876 | I149: 105427.9752 | J149: 24954.80173 | K149: 130382.7769 | L149: 69.42639879
A150: 80.4 | B150: Functiegroep 80 | C150: 4 | D150: 77 | E150: 7806 | F150: 93672 | G150: 7802.8776 | H150: 7802.8776 | I150: 109277.7552 | J150: 25866.04466 | K150: 135143.7999 | L150: 71.96155477
A151: 80.5 | B151: Functiegroep 80 | C151: 5 | D151: 80 | E151: 8113 | F151: 97356 | G151: 8109.7548 | H151: 8109.7548 | I151: 113575.5096 | J151: 26883.32312 | K151: 140458.8327 | L151: 74.79171071
A152: 80.6 | B152: Functiegroep 80 | C152: 6 | D152: 83 | E152: 8420 | F152: 101040 | G152: 8416.632 | H152: 8416.632 | I152: 117873.264 | J152: 27900.60159 | K152: 145773.8656 | L152: 77.62186666
A153: 80.7 | B153: Functiegroep 80 | C153: 7 | D153: 86 | E153: 8766 | F153: 105192 | G153: 8762.4936 | H153: 8762.4936 | I153: 122716.9872 | J153: 29047.11087 | K153: 151764.0981 | L153: 80.81155382
A154: 80.8 | B154: Functiegroep 80 | C154: 8 | D154: 88 | E154: 9006 | F154: 108072 | G154: 9002.3976 | H154: 9002.3976 | I154: 126076.7952 | J154: 29842.37742 | K154: 155919.1726 | L154: 83.02405358
A155: 80.9 | B155: Functiegroep 80 | C155: 9 | D155: 90 | E155: 9263 | F155: 111156 | G155: 9259.2948 | H155: 9259.2948 | I155: 129674.5896 | J155: 30693.97536 | K155: 160368.565 | L155: 85.39327208
A156: 80.10 | B156: Functiegroep 80 | C156: 10 | D156: 92 | E156: 9523 | F156: 114276 | G156: 9519.1908 | H156: 9519.1908 | I156: 133314.3816 | J156: 31555.51412 | K156: 164869.8957 | L156: 87.79014682
A157: 80.11 | B157: Functiegroep 80 | C157: 11 | D157: 94 | E157: 9785 | F157: 117420 | G157: 9781.086 | H157: 9781.086 | I157: 136982.172 | J157: 32423.68011 | K157: 169405.8521 | L157: 90.20545906
A158: 80.12 | B158: Functiegroep 80 | C158: 12 | D158: 95 | E158: 9916 | F158: 118992 | G158: 9912.0336 | H158: 9912.0336 | I158: 138816.0672 | J158: 32857.76311 | K158: 171673.8303 | L158: 91.41311518
A159: 80.13 | B159: Functiegroep 80 | C159: 13 | D159: 96 | E159: 10047 | F159: 120564 | G159: 10042.9812 | H159: 10042.9812 | I159: 140649.9624 | J159: 33291.8461 | K159: 173941.8085 | L159: 92.6207713
A160: 80.14 | B160: Functiegroep 80 | C160: 14 | D160: 97 | E160: 10178 | F160: 122136 | G160: 10173.9288 | H160: 10173.9288 | I160: 142483.8576 | J160: 33725.92909 | K160: 176209.7867 | L160: 93.82842742
A161: 80.15 | B161: Functiegroep 80 | C161: 15 | D161: 98 | E161: 10307 | F161: 123684 | G161: 10302.8772 | H161: 10302.8772 | I161: 144289.7544 | J161: 34153.38487 | K161: 178443.1393 | L161: 95.01764604
A162: 80.16 | B162: Functiegroep 80 | C162: 16 | D162: 99 | E162: 10440 | F162: 125280 | G162: 10435.824 | H162: 10435.824 | I162: 146151.648 | J162: 34594.09508 | K162: 180745.7431 | L162: 96.24373966
A163: 80.17 | B163: Functiegroep 80 | C163: 17 | D163: 100 | E163: 10570 | F163: 126840 | G163: 10565.772 | H163: 10565.772 | I163: 147971.544 | J163: 35024.86446 | K163: 182996.4085 | L163: 97.44217703
